bitfinex/quotes_BTCUSD_20241216
["timestamp","ask_amount","ask_price","bid_price","bid_amount"]
[1734315209623,0.0989542,105060.0,105050.0,0.171344]
[1734315212578,0.15481032,105060.0,105050.0,0.171344]
[1734315213258,0.0989542,105060.0,105050.0,0.171344]
[1734315215204,0.190385,105050.0,105040.0,0.01485756]
[1734315215407,0.2846757,105050.0,105040.0,0.01485756]
[1734315215610,0.36766495,105050.0,105040.0,0.01485756]
[1734315218798,0.17727995,105050.0,105040.0,0.02080382]
[1734315219206,0.36766495,105050.0,105040.0,0.02080382]
[1734315219662,0.17727995,105050.0,105040.0,0.19216682]
[1734315220289,0.17727995,105050.0,105040.0,0.2773596]
[1734315220290,0.09877995,105050.0,105040.0,0.2773596]
[1734315222497,0.09877995,105050.0,105040.0,0.277446]
[1734315223035,0.09877995,105050.0,105040.0,0.28695824]
[1734315223778,0.09877995,105050.0,105040.0,0.00959864]
[1734315223990,0.09877995,105050.0,105040.0,0.26615442]
[1734315224208,0.09877995,105050.0,105040.0,0.25664218]
[1734315225592,0.15837525,105050.0,105030.0,0.00063566]
[1734315225787,0.4859937,105040.0,105030.0,0.00016936]
[1734315225991,0.46594052,105040.0,105030.0,0.00016936]
[1734315228067,0.41594052,105040.0,105030.0,0.00016936]
[1734315228287,0.41594052,105040.0,105030.0,0.01503201]
[1734315228288,0.51011578,105040.0,105030.0,0.01503201]
[1734315229091,0.53441578,105040.0,105030.0,0.01503201]
[1734315231610,0.48441578,105040.0,105030.0,0.01503201]
[1734315232016,0.48441578,105040.0,105030.0,0.00016936]
[1734315232017,0.46011578,105040.0,105030.0,0.00016936]
[1734315232403,0.46011578,105040.0,105030.0,0.01503195]
[1734315233684,0.46011578,105040.0,105030.0,0.01511825]
[1734315233925,0.46028838,105040.0,105030.0,0.01511825]
[1734315234322,0.46028838,105040.0,105030.0,0.00025566]
[1734315234534,0.46028838,105040.0,105030.0,0.01511727]
[1734315235067,0.48458838,105040.0,105030.0,0.01511727]
[1734315235581,0.48458838,105040.0,105030.0,0.02106465]
[1734315237336,0.48458838,105040.0,105030.0,0.01511727]
[1734315237890,0.48458838,105040.0,105030.0,0.02106464]
[1734315240151,0.48458838,105040.0,105010.0,0.304714]
[1734315240330,0.48458838,105040.0,105010.0,0.30482144]
[1734315240536,0.67500638,105040.0,105010.0,0.45717544]
[1734315240789,0.67500638,105040.0,105010.0,0.30481844]
[1734315241049,0.190422,105030.0,105010.0,0.30481844]
[1734315241279,0.0942907,105020.0,105010.0,0.30481844]
[1734315241502,0.09850827,105020.0,105010.0,0.30481844]
[1734315242642,0.09850827,105020.0,105010.0,0.31968049]
[1734315243342,0.09850827,105020.0,105010.0,0.39808049]
[1734315244944,0.09850827,105020.0,105010.0,0.21561635]
[1734315245144,0.09850827,105020.0,105010.0,0.36797435]
[1734315245553,0.09850827,105020.0,105010.0,0.36806065]
[1734315245755,0.09868087,105020.0,105010.0,0.36806065]
[1734315247580,0.09868087,105020.0,105010.0,0.45325343]
[1734315247790,0.09868087,105020.0,105010.0,0.45349913]
[1734315248443,0.10018039,105020.0,105010.0,0.45349913]
[1734315249295,0.10361032,105020.0,105010.0,0.45349913]
[1734315251647,0.10361032,105020.0,105010.0,0.36830635]
[1734315251852,0.10361032,105020.0,105010.0,0.28966065]
[1734315252471,0.10361032,105020.0,105010.0,0.29560795]
[1734315257417,0.00931962,105020.0,105010.0,0.38080073]
[1734315257630,0.00652,105020.0,105010.0,0.38080073]
[1734315257976,0.00652,105020.0,105010.0,0.35164781]
[1734315258583,0.00652,105020.0,105010.0,0.34570051]
[1734315258786,0.00652,105020.0,105010.0,0.35164783]
[1734315261860,0.00652,105020.0,105010.0,0.02089567]
[1734315261861,0.2912497,105020.0,105010.0,0.02089567]
[1734315262069,0.35846007,105020.0,105010.0,0.02089567]
[1734315263019,0.2912497,105020.0,105010.0,0.02089567]
[1734315267509,0.2912497,105020.0,105010.0,0.01494835]
[1734315267710,0.2912497,105020.0,105010.0,0.02089574]
[1734315267923,0.1008107,105020.0,105010.0,0.02089574]
[1734315268095,0.1008107,105020.0,105010.0,0.17326174]
[1734315269043,0.1008107,105020.0,105010.0,0.16731435]
[1734315269242,0.1008107,105020.0,105010.0,0.17326157]
[1734315270555,0.1008107,105020.0,105010.0,0.22930143]
[1734315271048,0.1008107,105020.0,105010.0,0.31464291]
[1734315271455,0.1008107,105020.0,105010.0,0.44265514]
[1734315274744,0.1008107,105020.0,105010.0,0.38661528]
[1734315274967,0.1008107,105020.0,105010.0,0.25860305]
[1734315275378,0.3704497,105020.0,105010.0,0.10623705]
[1734315276017,0.3704497,105020.0,105000.0,0.57430254]
[1734315276223,0.3704497,105020.0,105000.0,0.57486575]
[1734315276403,0.3704497,105020.0,105010.0,0.01486183]
[1734315278081,0.3704497,105020.0,105000.0,0.78065067]
[1734315278306,0.3704497,105020.0,105010.0,0.01486188]
[1734315280467,0.3704497,105020.0,105010.0,0.01494818]
[1734315287787,0.60623577,105020.0,105010.0,0.01494818]
[1734315288000,0.84969425,105020.0,105010.0,0.01494818]
[1734315288200,1.02315069,105020.0,105010.0,0.02089656]
[1734315288403,0.72362549,105020.0,104980.0,0.1706059]
[1734315288641,0.19048,105000.0,104980.0,0.29395824]
[1734315288842,0.2847707,105000.0,104980.0,0.44636024]
[1734315289045,0.0067516,104990.0,104980.0,0.4612239]
[1734315290671,0.0067516,104990.0,104980.0,0.51726376]
[1734315291518,0.0067516,104990.0,104980.0,0.43175338]
[1734315292599,0.0067516,104990.0,104980.0,0.51726376]
[1734315292917,0.0067516,104990.0,104980.0,0.51735016]
[1734315293059,0.0067516,104990.0,104980.0,0.5197967]
[1734315293258,0.0067516,104990.0,104980.0,0.51974737]
[1734315296439,0.0067516,104990.0,104980.0,0.51730083]
[1734315296643,0.0067516,104990.0,104980.0,0.52681823]
[1734315297305,0.0067516,104990.0,104980.0,0.44135718]
[1734315298152,0.0067516,104990.0,104980.0,0.44135721]
[1734315298353,0.0067516,104990.0,104980.0,0.52679124]
[1734315298792,0.0067516,104990.0,104980.0,0.47075138]
[1734315299005,0.1010423,104990.0,104980.0,0.23290935]
[1734315299218,0.1010423,104990.0,104980.0,0.23290975]
[1734315300402,0.1010423,104990.0,104980.0,0.23885845]
[1734315300853,0.13813433,104990.0,104980.0,0.03041659]
[1734315301109,0.32862833,104990.0,104980.0,0.03041659]
[1734315301929,0.2915363,104990.0,104980.0,0.08645645]
[1734315302417,0.1010423,104990.0,104980.0,0.08645645]
[1734315302612,0.1010423,104990.0,104980.0,0.03041659]
[1734315302814,0.2915363,104990.0,104980.0,0.03041659]
[1734315303016,0.2915363,104990.0,104980.0,0.01555293]
[1734315303141,0.2915363,104990.0,104980.0,0.03041828]
[1734315304333,0.34548274,104990.0,104980.0,0.03041828]
[1734315304459,0.34548274,104990.0,104980.0,0.02090085]
[1734315304648,0.34548274,104990.0,104980.0,0.03041941]
[1734315304872,0.34548274,104990.0,104980.0,0.0337889]
[1734315305095,0.30027167,104990.0,104980.0,0.03041941]
[1734315306091,0.10977767,104990.0,104980.0,0.03041941]
[1734315306284,0.10977767,104990.0,104980.0,0.18282841]
[1734315306480,0.10977767,104990.0,104980.0,0.0337889]
[1734315306681,0.30027167,104990.0,104980.0,0.0337889]
[1734315306929,0.2915363,104990.0,104980.0,0.0337889]
[1734315307132,0.37240027,104990.0,104980.0,0.0337889]
[1734315307742,0.37240027,104990.0,104980.0,0.03041941]
[1734315308324,0.1010423,104990.0,104980.0,0.23886827]
[1734315309911,0.1010423,104990.0,104980.0,0.18282841]
[1734315310120,0.1010423,104990.0,104980.0,0.23886827]
[1734315311170,0.1010423,104990.0,104980.0,0.38057439]
[1734315311171,0.0067516,104990.0,104980.0,0.38057439]
[1734315311483,0.319258,105010.0,104990.0,0.304781]
[1734315311822,0.0942907,105000.0,104990.0,0.37628852]
[1734315314234,0.0942907,105000.0,104990.0,0.3762866]
[1734315314669,0.0942907,105000.0,104990.0,0.36082086]
[1734315314883,0.0942907,105000.0,104990.0,0.3762866]
[1734315316381,0.0944635,105000.0,104990.0,0.3762866]
[1734315318791,0.0944635,105000.0,104990.0,0.32024674]
[1734315318994,0.37218226,105000.0,104990.0,0.01546574]
[1734315319812,0.3618395,105000.0,104990.0,0.01546574]
[1734315320669,0.5523245,105000.0,104990.0,0.01546722]
[1734315322857,0.3618395,105000.0,104990.0,0.01546722]
[1734315323061,0.1713635,105000.0,104990.0,0.22390208]
[1734315323236,0.1713635,105000.0,104980.0,0.31767113]
[1734315323438,0.1713635,105000.0,104990.0,0.05603986]
[1734315323439,0.0944635,105000.0,104990.0,0.05603986]
[1734315323644,0.0944635,105000.0,104990.0,0.20843486]
[1734315323850,0.10126787,105000.0,104990.0,0.20843486]
[1734315331285,0.10126787,105000.0,104990.0,0.152395]
[1734315331479,0.10126787,105000.0,104990.0,0.20843486]
[1734315333271,0.10126787,105000.0,104990.0,0.21795246]
[1734315335286,0.10126787,105000.0,104990.0,0.20843486]
[1734315335531,0.10126787,105000.0,104990.0,0.22390076]
[1734315337076,0.10126787,105000.0,104990.0,0.3093378]
[1734315337493,0.10126787,105000.0,104990.0,0.22390076]
[1734315337851,0.10126787,105000.0,104990.0,0.21438328]
[1734315338473,0.10126787,105000.0,104990.0,0.20843486]
[1734315338685,0.10126787,105000.0,104990.0,0.21438325]
[1734315339838,0.10126787,105000.0,104990.0,0.29982029]
[1734315341557,0.10126787,105000.0,104990.0,0.2938719]
[1734315341997,0.10126787,105000.0,104990.0,0.29982013]
[1734315342744,0.10126787,105000.0,104990.0,0.24378027]
[1734315342946,0.10126787,105000.0,104990.0,0.29982013]
[1734315346094,0.10126787,105000.0,104990.0,0.29989234]
[1734315346502,0.42074387,105000.0,104990.0,0.09145748]
[1734315346709,0.47685316,105000.0,104990.0,0.00594823]
[1734315347965,0.47685316,105000.0,104990.0,0.00594907]
[1734315350949,0.47685316,105000.0,104990.0,0.00594908]
[1734315351490,0.266994,104990.0,104980.0,0.07099035]
[1734315351697,0.45338795,104990.0,104980.0,0.0208996]
[1734315352347,0.36807423,104990.0,104980.0,0.0208996]
[1734315354206,0.36807423,104990.0,104980.0,0.01495049]
[1734315354375,0.36807423,104990.0,104970.0,0.15151687]
[1734315354573,0.0942907,104980.0,104970.0,0.05603986]
[1734315354752,0.10107719,104980.0,104970.0,0.05603986]
[1734315354961,0.10107719,104980.0,104970.0,0.07090588]
[1734315355168,0.10107719,104980.0,104970.0,0.22332288]
[1734315355751,0.10107719,104980.0,104970.0,0.22342288]
[1734315357912,0.10107719,104980.0,104970.0,0.16738302]
[1734315358114,0.10107719,104980.0,104970.0,0.22342288]
[1734315358315,0.34744661,104980.0,104970.0,0.01496602]
[1734315358515,0.34744661,104980.0,104970.0,0.07100588]
[1734315358866,0.29158919,104980.0,104970.0,0.07100588]
[1734315361410,0.29158919,104980.0,104970.0,0.07109228]
[1734315362599,0.10107719,104980.0,104970.0,0.20541587]
[1734315364818,0.10107719,104980.0,104970.0,0.07204487]
[1734315365046,0.10107719,104980.0,104970.0,0.01505242]
[1734315365047,0.41168919,104980.0,104970.0,0.01505242]
[1734315365246,0.46754701,104980.0,104970.0,0.01505242]
[1734315365961,0.46754701,104980.0,104970.0,0.01802753]
[1734315366508,0.46754701,104980.0,104970.0,0.0239783]
[1734315368535,0.41168919,104980.0,104970.0,0.00911228]
[1734315368743,0.41168919,104980.0,104970.0,0.06515214]
[1734315369171,0.41168919,104980.0,104970.0,0.00911228]
[1734315371475,0.36658919,104980.0,104970.0,0.02397875]
[1734315371688,0.36658919,104980.0,104970.0,0.02397812]
[1734315372098,0.29158919,104980.0,104970.0,0.02397812]
[1734315372332,0.10107719,104980.0,104970.0,0.02100301]
[1734315372668,0.10107719,104980.0,104970.0,0.023978]
[1734315372872,0.10107719,104980.0,104970.0,0.02100301]
[1734315373075,0.10107719,104980.0,104970.0,0.01802786]
[1734315373686,0.10107719,104980.0,104970.0,0.01505287]
[1734315374886,0.29176199,104980.0,104970.0,0.01802783]
[1734315375096,0.43553829,104980.0,104970.0,0.01802783]
[1734315377758,0.43553829,104980.0,104970.0,0.01802807]
[1734315378708,0.49157815,104980.0,104970.0,0.01802807]
[1734315379505,0.43553829,104980.0,104970.0,0.01802807]
[1734315380989,0.43553829,104980.0,104970.0,0.01802822]
[1734315382470,0.53927815,104980.0,104970.0,0.01802822]
[1734315382689,0.58927815,104980.0,104970.0,0.01802822]
[1734315382878,0.48323829,104980.0,104970.0,0.01802822]
[1734315383080,0.41596199,104980.0,104970.0,0.01802822]
[1734315383515,0.36826199,104980.0,104970.0,0.01802822]
[1734315383885,0.10124999,104980.0,104970.0,0.20446373]
[1734315384299,0.10124999,104980.0,104970.0,0.14842387]
[1734315384497,0.09893834,104980.0,104970.0,0.20446373]
[1734315388019,0.09893834,104980.0,104970.0,0.14842387]
[1734315388234,0.31839397,104980.0,104970.0,0.01505287]
[1734315388436,0.40089397,104980.0,104970.0,0.01505287]
[1734315389373,0.44879397,104980.0,104970.0,0.01505287]
[1734315390011,0.50483383,104980.0,104970.0,0.01505287]
[1734315390220,0.44879397,104980.0,104970.0,0.01505287]
[1734315398324,0.69617763,104980.0,104970.0,8.7e-07]
[1734315398503,0.266648,104960.0,104950.0,0.04054474]
[1734315398700,0.266648,104960.0,104950.0,0.02567654]
[1734315398701,0.36539352,104960.0,104950.0,0.02567654]
[1734315400161,0.36539352,104960.0,104950.0,0.0157569]
[1734315400416,0.36539352,104960.0,104950.0,0.02567007]
[1734315401167,0.28929352,104960.0,104950.0,0.08170993]
[1734315401415,0.28929352,104960.0,104950.0,0.07179676]
[1734315401586,0.28929352,104960.0,104950.0,0.08170961]
[1734315401792,0.2848387,104960.0,104950.0,0.08170961]
[1734315404562,0.2848387,104960.0,104950.0,0.02566975]
[1734315406268,0.2848387,104960.0,104950.0,0.08170961]
[1734315406869,0.2848387,104960.0,104950.0,0.09657833]
[1734315408620,0.2848387,104960.0,104950.0,0.04053847]
[1734315409386,0.317113,104960.0,104950.0,0.04053847]
[1734315409591,0.317113,104960.0,104950.0,0.09657833]
[1734315412455,0.317113,104960.0,104950.0,0.08666548]
[1734315414053,0.2848387,104960.0,104950.0,0.08666548]
[1734315416464,0.4131387,104960.0,104950.0,0.03062562]
[1734315417309,0.4131387,104960.0,104950.0,0.03360139]
[1734315419575,0.4131387,104960.0,104950.0,0.03955294]
[1734315420968,0.4131387,104960.0,104950.0,0.03062562]
[1734315421172,0.49499077,104960.0,104950.0,0.03955294]
[1734315423879,0.49499077,104960.0,104950.0,0.03360139]
[1734315424092,0.49499077,104960.0,104950.0,0.03955313]
[1734315424299,0.49499077,104960.0,104950.0,0.03657736]
[1734315424516,0.51929077,104960.0,104950.0,0.03657736]
[1734315424717,0.51929077,104960.0,104950.0,0.03955331]
[1734315424893,0.51929077,104960.0,104950.0,0.03657736]
[1734315426506,0.54499077,104960.0,104950.0,0.00595174]
[1734315426730,0.190585,104940.0,104930.0,0.05603986]
[1734315426951,0.2848757,104940.0,104930.0,0.05603986]
[1734315427165,0.270703,104930.0,104910.0,0.48045841]
[1734315427371,0.4755057,104930.0,104920.0,0.11207972]
[1734315427576,0.2848937,104930.0,104920.0,0.11207972]
[1734315428095,0.28500089,104930.0,104920.0,0.11207972]
[1734315431770,0.09439789,104930.0,104920.0,0.24551372]
[1734315432752,0.09439789,104930.0,104920.0,0.24560002]
[1734315433115,0.28500089,104930.0,104920.0,0.24560002]
[1734315433326,0.28500089,104930.0,104920.0,0.11216602]
[1734315436683,0.09439789,104930.0,104920.0,0.24560002]
[1734315436853,0.09439789,104930.0,104920.0,0.29540002]
[1734315437779,0.09439789,104930.0,104920.0,0.23936016]
[1734315437962,0.09439789,104930.0,104920.0,0.18956016]
[1734315438572,0.09439789,104930.0,104920.0,0.19551251]
[1734315438768,0.09439789,104930.0,104920.0,0.20503624]
[1734315438973,0.28500089,104930.0,104920.0,0.01556238]
[1734315439178,0.190621,104920.0,104870.0,0.37871022]
[1734315439378,0.47266442,104880.0,104870.0,0.28856815]
[1734315439660,0.52266442,104880.0,104870.0,0.00782645]
[1734315439867,0.52266442,104880.0,104870.0,0.00306267]
[1734315440080,0.46662456,104880.0,104870.0,0.0030645]
[1734315440257,0.6228297,104880.0,104870.0,0.0030645]
[1734315440518,0.66700496,104880.0,104870.0,8.64e-05]
[1734315440727,0.66717362,104880.0,104870.0,8.64e-05]
[1734315440937,0.45492862,104880.0,104870.0,8.64e-05]
[1734315442038,0.4805756,104880.0,104870.0,8.64e-05]
[1734315442288,0.6079445,104880.0,104870.0,8.64e-05]
[1734315442808,0.49734365,104880.0,104870.0,8.64e-05]
[1734315443726,0.28515336,104880.0,104870.0,8.64e-05]
[1734315444459,0.09445936,104880.0,104870.0,8.64e-05]
[1734315444698,0.17920884,104880.0,104870.0,8.64e-05]
[1734315445130,0.17920884,104880.0,104870.0,0.08574205]
[1734315445354,0.09445936,104880.0,104870.0,0.21924005]
[1734315446417,0.09445936,104880.0,104870.0,0.1335844]
[1734315447040,0.09445936,104880.0,104870.0,8.64e-05]
[1734315447271,0.28515336,104880.0,104870.0,8.64e-05]
[1734315447476,0.15051113,104880.0,104870.0,8.64e-05]
[1734315450386,0.09445936,104880.0,104870.0,8.64e-05]
[1734315451171,0.09445936,104880.0,104870.0,0.00604173]
[1734315451548,0.09415575,104880.0,104870.0,0.00604173]
[1734315451963,0.09415575,104880.0,104870.0,0.26333838]
[1734315452650,0.09415575,104880.0,104870.0,0.26333788]
[1734315453922,0.09358362,104880.0,104870.0,0.26333788]
[1734315454284,0.10294198,104880.0,104870.0,0.00604123]
[1734315454693,0.09358362,104880.0,104870.0,0.00604123]
[1734315454867,0.09358362,104880.0,104870.0,0.09169688]
[1734315455302,0.09358362,104880.0,104870.0,0.08574205]
[1734315455463,0.09358362,104880.0,104870.0,0.09169753]
[1734315455907,0.09375642,104880.0,104870.0,0.26333853]
[1734315456287,0.09375642,104880.0,104870.0,0.09169753]
[1734315456905,0.16239256,104880.0,104870.0,0.00604188]
[1734315458982,0.35308656,104880.0,104870.0,0.00604188]
[1734315459137,0.43758213,104880.0,104870.0,0.00604188]
[1734315460171,0.43758213,104880.0,104840.0,0.27308945]
[1734315460172,0.190712,104870.0,104840.0,0.27308945]
[1734315460393,0.2850207,104860.0,104840.0,0.27606768]
[1734315460572,0.190748,104850.0,104840.0,0.01873503]
[1734315460770,0.2850387,104850.0,104840.0,0.01873503]
[1734315461189,0.2829987,104850.0,104840.0,0.01873503]
[1734315461817,0.0942907,104850.0,104840.0,0.01873503]
[1734315462020,0.2850387,104850.0,104840.0,0.01873535]
[1734315462382,0.2850387,104850.0,104840.0,0.0217139]
[1734315463633,0.0942907,104850.0,104840.0,0.01873535]
[1734315465174,0.2850387,104850.0,104840.0,0.01873535]
[1734315466064,0.28249404,104850.0,104840.0,0.01873535]
[1734315466415,0.27679404,104850.0,104840.0,0.01873535]
[1734315466593,0.35980883,104850.0,104840.0,0.01873535]
[1734315466806,0.27513625,104850.0,104840.0,0.01873535]
[1734315467430,0.32173625,104850.0,104840.0,0.01873535]
[1734315468240,0.32173625,104850.0,104840.0,0.0157568]
[1734315469133,0.34603625,104850.0,104840.0,0.0157568]
[1734315469316,0.53629681,104850.0,104840.0,0.0187358]
[1734315469514,0.89137349,104850.0,104840.0,0.0187358]
[1734315469665,0.89137349,104850.0,104840.0,0.0157568]
[1734315469871,1.10227491,104850.0,104840.0,0.0157568]
[1734315470067,0.97573406,104850.0,104840.0,0.0157568]
[1734315470275,1.10222848,104850.0,104840.0,0.0157568]
[1734315470731,0.9756376,104850.0,104840.0,0.0157568]
[1734315470935,0.80691647,104850.0,104840.0,0.0157568]
[1734315471371,0.97562882,104850.0,104840.0,0.0157568]
[1734315471589,0.70686852,104850.0,104840.0,0.0157568]
[1734315471802,0.58041431,104850.0,104840.0,0.01873596]
[1734315472036,0.63041431,104850.0,104840.0,0.01873596]
[1734315472242,0.63041431,104850.0,104840.0,0.02469414]
[1734315472674,0.58041431,104850.0,104840.0,0.02469414]
[1734315472883,0.63041431,104850.0,104840.0,0.01873596]
[1734315473088,0.75686852,104850.0,104840.0,0.0157568]
[1734315473465,0.80686852,104850.0,104840.0,0.0157568]
[1734315473822,0.89117133,104850.0,104840.0,0.0157568]
[1734315474202,0.97547791,104850.0,104840.0,0.0157568]
[1734315474962,0.92547791,104850.0,104840.0,0.0157568]
[1734315475167,0.190778,104840.0,104810.0,0.2008569]
[1734315475522,0.0942907,104830.0,104810.0,0.01897578]
[1734315475728,0.2850757,104830.0,104810.0,0.01897578]
[1734315475948,0.2850757,104830.0,104810.0,0.00902418]
[1734315476458,0.28524424,104830.0,104810.0,0.00902418]
[1734315476801,0.28524424,104830.0,104810.0,0.00402418]
[1734315477037,0.33594705,104830.0,104810.0,0.00402418]
[1734315478033,0.33594705,104830.0,104810.0,0.00297929]
[1734315478735,0.28524424,104830.0,104810.0,8.64e-05]
[1734315480437,0.09445924,104830.0,104810.0,0.27655205]
[1734315480750,0.09445924,104830.0,104810.0,0.48225981]
[1734315481148,0.09445924,104830.0,104810.0,0.29143981]
[1734315481754,0.09445924,104830.0,104810.0,0.48224981]
[1734315481955,0.09445924,104830.0,104820.0,0.190803]
[1734315482160,0.00016854,104830.0,104820.0,0.272103]
[1734315482362,0.00016854,104830.0,104820.0,0.4434143]
[1734315482561,0.00016854,104830.0,104820.0,0.4911143]
[1734315482773,0.00016854,104830.0,104820.0,0.40545865]
[1734315483039,0.00016854,104830.0,104820.0,0.5411143]
[1734315483594,0.00016854,104830.0,104820.0,0.40545865]
[1734315485192,0.00016854,104830.0,104820.0,0.4911143]
[1734315485949,0.00016854,104830.0,104820.0,0.40545865]
[1734315488221,0.00016854,104830.0,104820.0,0.35775865]
[1734315488633,0.09445924,104830.0,104820.0,0.35775865]
[1734315489059,0.09445924,104830.0,104820.0,0.36371632]
[1734315490268,0.09445924,104830.0,104820.0,0.36380272]
[1734315491508,0.09445924,104830.0,104820.0,0.35784505]
[1734315491710,0.09445924,104830.0,104820.0,0.36380262]
[1734315492539,0.09445924,104830.0,104820.0,0.28250262]
[1734315494669,0.09445924,104830.0,104820.0,0.27654505]
[1734315494857,0.09445924,104830.0,104820.0,0.28250266]
[1734315495729,0.09445924,104830.0,104820.0,0.27654505]
[1734315495932,0.09445924,104830.0,104820.0,0.28250266]
[1734315496714,0.09445924,104830.0,104820.0,0.19684701]
[1734315497959,0.09445924,104830.0,104820.0,0.19684734]
[1734315498088,0.09445924,104830.0,104820.0,0.1908894]
[1734315498291,0.09445924,104830.0,104820.0,0.28250295]
[1734315499322,0.09445924,104830.0,104820.0,0.28548194]
[1734315500542,0.09445924,104830.0,104820.0,0.28250295]
[1734315500992,0.09445924,104830.0,104820.0,0.28250296]
[1734315501409,0.09445924,104830.0,104820.0,0.28548195]
[1734315502105,0.09445924,104830.0,104820.0,0.0090233]
[1734315502542,0.41314424,104830.0,104820.0,0.0090233]
[1734315502760,0.41314424,104830.0,104800.0,0.46586648]
[1734315502882,0.0942907,104820.0,104800.0,0.46586648]
[1734315503085,0.0942907,104820.0,104810.0,0.190812]
[1734315503536,0.0942907,104820.0,104810.0,0.27646765]
[1734315506471,0.0942907,104820.0,104810.0,0.190812]
[1734315506874,0.0942907,104820.0,104810.0,0.27646765]
[1734315507284,0.11152461,104820.0,104810.0,0.27646765]
[1734315507510,0.11152461,104820.0,104800.0,0.66665758]
[1734315508267,0.1769907,104810.0,104800.0,0.0100506]
[1734315508475,0.3678117,104810.0,104800.0,0.0100506]
[1734315508629,0.44922906,104810.0,104800.0,8.65e-05]
[1734315509024,0.44922906,104810.0,104790.0,0.25209915]
[1734315509456,0.44922906,104810.0,104790.0,0.44294715]
[1734315509921,0.3678117,104810.0,104790.0,0.44294715]
[1734315511787,0.1769907,104810.0,104790.0,0.44294415]
[1734315511994,0.1769907,104810.0,104800.0,0.190839]
[1734315512213,0.1769907,104810.0,104800.0,0.27649465]
[1734315512452,0.1769907,104810.0,104800.0,0.190839]
[1734315513404,0.0942907,104810.0,104800.0,0.190839]
[1734315513832,0.12089316,104810.0,104800.0,0.190839]
[1734315514031,0.0942907,104810.0,104800.0,0.190839]
[1734315514864,0.0942907,104810.0,104800.0,0.19977775]
[1734315515069,0.0942907,104810.0,104800.0,0.2854334]
[1734315515267,0.0942907,104810.0,104800.0,0.28245382]
[1734315515472,0.0942907,104810.0,104800.0,0.19679817]
[1734315517971,0.11198977,104810.0,104800.0,0.19679817]
[1734315518170,0.11198977,104810.0,104800.0,0.1997778]
[1734315519484,0.11198977,104810.0,104800.0,0.19679817]
[1734315519701,0.11198977,104810.0,104800.0,0.19977781]
[1734315519702,0.0942907,104810.0,104800.0,0.19977781]
[1734315520751,0.0942907,104810.0,104800.0,0.00893881]
[1734315520966,0.2851117,104810.0,104800.0,0.00893881]
[1734315521171,0.3683117,104810.0,104800.0,0.00893881]
[1734315522226,0.1774907,104810.0,104800.0,0.00893881]
[1734315522680,0.23792077,104810.0,104800.0,0.00893881]
[1734315522889,0.1774907,104810.0,104800.0,0.00893881]
[1734315523510,0.3683117,104810.0,104800.0,0.00893881]
[1734315525774,0.3683117,104810.0,104800.0,0.00893941]
[1734315526405,0.3684847,104810.0,104800.0,0.00893941]
[1734315527718,0.1776637,104810.0,104800.0,0.19977841]
[1734315528349,0.0944637,104810.0,104800.0,0.19977841]
[1734315528913,0.0944637,104810.0,104800.0,0.19977855]
[1734315530578,0.0944637,104810.0,104800.0,0.2854342]
[1734315531432,0.0944637,104810.0,104800.0,0.36787593]
[1734315532066,0.0944637,104810.0,104800.0,0.36787476]
[1734315532509,0.0944637,104810.0,104800.0,0.49600702]
[1734315533003,0.0944637,104810.0,104800.0,0.28245325]
[1734315534720,0.0944637,104810.0,104800.0,0.1967976]
[1734315535144,0.0944637,104810.0,104800.0,0.19679788]
[1734315535362,0.0944637,104810.0,104800.0,0.190839]
[1734315535564,0.0944637,104810.0,104800.0,0.20633209]
[1734315536119,0.12299057,104810.0,104800.0,0.20931173]
[1734315536327,0.1748637,104810.0,104800.0,0.20931173]
[1734315536530,0.1748637,104810.0,104800.0,0.20931178]
[1734315536738,0.1748637,104810.0,104800.0,0.01847278]
[1734315536935,0.3656847,104810.0,104800.0,0.01847278]
[1734315537289,0.44284497,104810.0,104800.0,0.01847278]
[1734315538334,0.44284497,104810.0,104790.0,0.357386]
[1734315538541,0.44284497,104810.0,104800.0,0.00893974]
[1734315538744,0.44284497,104810.0,104800.0,0.01847547]
[1734315540123,0.3656847,104810.0,104800.0,0.01847547]
[1734315540531,0.3656847,104810.0,104800.0,0.01251564]
[1734315540738,0.3656847,104810.0,104800.0,0.01847545]
[1734315541517,0.3656847,104810.0,104800.0,0.01549554]
[1734315542848,0.3656847,104810.0,104800.0,0.01384983]
[1734315543399,0.44284497,104810.0,104800.0,0.01384983]
[1734315543601,0.63366597,104810.0,104800.0,0.00595981]
[1734315543975,0.63366597,104810.0,104800.0,0.00595982]
[1734315544595,0.3656847,104810.0,104800.0,0.00595982]
[1734315545003,0.1748637,104810.0,104800.0,0.00595982]
[1734315545207,0.1748637,104810.0,104800.0,0.19679882]
[1734315545420,0.3656847,104810.0,104800.0,0.00595982]
[1734315546509,0.4137847,104810.0,104800.0,0.00595982]
[1734315546823,0.50075527,104810.0,104800.0,0.00595982]
[1734315548101,0.39889623,104810.0,104800.0,0.00595982]
[1734315548678,0.42319623,104810.0,104800.0,0.00595982]
[1734315548852,0.42319623,104810.0,104800.0,0.00604612]
[1734315549817,0.42319623,104810.0,104800.0,8.63e-05]
[1734315550014,0.18427523,104810.0,104800.0,0.00604643]
[1734315552027,0.18427523,104810.0,104800.0,0.19688543]
[1734315552228,0.18427523,104810.0,104800.0,0.00604643]
[1734315552610,0.25994665,104810.0,104800.0,0.00604643]
[1734315552826,0.25994665,104810.0,104800.0,0.015582]
[1734315553027,0.25994665,104810.0,104800.0,0.01558162]
[1734315553281,0.45076765,104810.0,104800.0,0.01558162]
[1734315553426,0.45076765,104810.0,104800.0,0.01558236]
[1734315553627,0.42646765,104810.0,104800.0,0.01558236]
[1734315553829,0.47276765,104810.0,104800.0,0.01558236]
[1734315554711,0.47276765,104810.0,104800.0,0.01856252]
[1734315554885,0.47276765,104810.0,104800.0,0.01558236]
[1734315555066,0.47276765,104810.0,104800.0,0.01856254]
[1734315555507,0.47276765,104810.0,104800.0,0.01558236]
[1734315555706,0.47276765,104810.0,104780.0,0.44977964]
[1734315555910,0.66360365,104810.0,104780.0,0.64064264]
[1734315556338,0.85443965,104810.0,104780.0,0.64064264]
[1734315556745,0.87873965,104810.0,104780.0,0.64362284]
[1734315557308,0.87873965,104810.0,104780.0,0.64064264]
[1734315557442,0.87873965,104810.0,104780.0,0.45275885]
[1734315557640,0.87873965,104810.0,104780.0,0.64362385]
[1734315558276,0.87873965,104810.0,104780.0,0.64064364]
[1734315558805,0.68790365,104810.0,104780.0,0.44977864]
[1734315558935,0.19084,104800.0,104780.0,0.44977864]
[1734315559139,0.0942907,104790.0,104780.0,0.53543429]
[1734315559552,0.0942907,104790.0,104780.0,0.5254374]
[1734315560376,0.09445911,104790.0,104780.0,0.5254374]
[1734315560617,0.09445911,104790.0,104780.0,0.43988933]
[1734315560828,0.09445911,104790.0,104780.0,0.5255237]
[1734315561962,0.09445911,104790.0,104780.0,0.55242627]
[1734315562423,0.09445911,104790.0,104780.0,0.55492544]
[1734315562636,0.09445911,104790.0,104780.0,0.55242627]
[1734315563093,0.09445911,104790.0,104780.0,0.55487257]
[1734315563292,0.09445911,104790.0,104780.0,0.44231435]
[1734315563567,0.09445911,104790.0,104780.0,0.55487257]
[1734315563773,0.09445911,104790.0,104780.0,0.61115168]
[1734315563976,0.00016841,104790.0,104780.0,0.5993641]